[Event "Titled Tuesday Blitz August 02 Late 2022"]
[White "Paiva, Henrique M A Albergaria"]
[Black "Chiu, Isaac"]
[WhiteFideId "1920995"]
[BlackFideId "30900654"]
[WhiteElo "1975"]
[BlackElo "2181"]
[Result "0-1"]
[Round "03"]
[TimeControl "180+1"]
[Date "2022.08.02"]
[WhiteClock "0:00:37"]
[BlackClock "0:00:16"]

1. e4 {[%clk 0:02:59]}  Nf6 {[%clk 0:02:58]} 2. e5 {[%clk 0:02:58]}  Nd5 {[%clk 0:02:59]} 3. d4 {[%clk 0:02:59]}  d6 {[%clk 0:02:59]} 4. Nf3 {[%clk 0:03:00]}  dxe5 {[%clk 0:02:59]} 5. Nxe5 {[%clk 0:03:01]}  c6 {[%clk 0:03:00]} 6. c3 {[%clk 0:02:57]}  Nd7 {[%clk 0:02:55]} 7. Bc4 {[%clk 0:02:49]}  Nxe5 {[%clk 0:02:50]} 8. dxe5 {[%clk 0:02:49]}  Be6 {[%clk 0:02:50]} 9. O-O {[%clk 0:02:49]}  Nxc3 {[%clk 0:02:42]} 10. Nxc3 {[%clk 0:02:40]}  Qxd1 {[%clk 0:02:37]} 11. Rxd1 {[%clk 0:02:41]}  Bxc4 {[%clk 0:02:37]} 12. Rd4 {[%clk 0:02:35]}  Be6 {[%clk 0:02:37]} 13. Be3 {[%clk 0:02:33]}  g6 {[%clk 0:02:36]} 14. Rb4 {[%clk 0:02:32]}  b6 {[%clk 0:02:36]} 15. a4 {[%clk 0:02:29]}  c5 {[%clk 0:02:33]} 16. Re4 {[%clk 0:02:28]}  a5 {[%clk 0:02:21]} 17. Nb5 {[%clk 0:02:27]}  O-O-O {[%clk 0:02:14]} 18. b4 {[%clk 0:02:23]}  Bd5 {[%clk 0:01:57]} 19. Rf4 {[%clk 0:02:22]}  Bh6 {[%clk 0:01:53]} 20. bxc5 {[%clk 0:02:16]}  Bxf4 {[%clk 0:01:51]} 21. Bxf4 {[%clk 0:02:17]}  bxc5 {[%clk 0:01:43]} 22. Rb1 {[%clk 0:02:03]}  Rd7 {[%clk 0:01:39]} 23. Nc3 {[%clk 0:02:01]}  Bb7 {[%clk 0:01:34]} 24. Rb5 {[%clk 0:01:56]}  Rd3 {[%clk 0:01:16]} 25. Rxc5+ {[%clk 0:01:53]}  Kb8 {[%clk 0:01:17]} 26. e6+ {[%clk 0:01:53]}  Ka7 {[%clk 0:01:15]} 27. exf7 {[%clk 0:01:35]}  Rf8 {[%clk 0:01:12]} 28. Be3 {[%clk 0:01:05]}  Kb8 {[%clk 0:00:57]} 29. Bf4+ {[%clk 0:01:05]}  Ka7 {[%clk 0:00:55]} 30. Be3 {[%clk 0:01:06]}  Rxf7 {[%clk 0:00:52]} 31. Nb5+ {[%clk 0:00:54]}  Ka8 {[%clk 0:00:35]} 32. h3 {[%clk 0:00:53]}  Rd7 {[%clk 0:00:30]} 33. Nc3 {[%clk 0:00:51]}  Rf5 {[%clk 0:00:29]} 34. Rc4 {[%clk 0:00:47]}  Kb8 {[%clk 0:00:25]} 35. g4 {[%clk 0:00:37]}  Rf3 {[%clk 0:00:21]} 36. Bf4+ {[%clk 0:00:37]}  Ka8 {[%clk 0:00:19]} 37. Bg3 {[%clk 0:00:37]}  Rxc3 {[%clk 0:00:16]} 0-1


[Site "https://www.chess.com"]

[Event "Titled Tuesday Blitz August 02 Late 2022"]
[White "Paravyan, David"]
[Black "Aghasiyev, Kamal"]
[WhiteFideId "4194985"]
[BlackFideId "13402854"]
[WhiteElo "2569"]
[BlackElo "2210"]
[Result "1-0"]
[Round "03"]
[TimeControl "180+1"]
[Date "2022.08.02"]
[WhiteClock "0:01:06"]
[BlackClock "0:00:01"]

1. e4 {[%clk 0:03:00]}  e5 {[%clk 0:02:59]} 2. Nf3 {[%clk 0:03:01]}  Nc6 {[%clk 0:02:59]} 3. Nc3 {[%clk 0:03:01]}  Nf6 {[%clk 0:02:58]} 4. d4 {[%clk 0:03:02]}  exd4 {[%clk 0:02:58]} 5. Nxd4 {[%clk 0:03:03]}  Bb4 {[%clk 0:02:58]} 6. Nxc6 {[%clk 0:03:03]}  bxc6 {[%clk 0:02:58]} 7. Bd3 {[%clk 0:03:04]}  O-O {[%clk 0:02:56]} 8. O-O {[%clk 0:03:04]}  d5 {[%clk 0:02:56]} 9. exd5 {[%clk 0:03:05]}  cxd5 {[%clk 0:02:56]} 10. Bg5 {[%clk 0:03:05]}  c6 {[%clk 0:02:56]} 11. Qf3 {[%clk 0:03:05]}  Bd6 {[%clk 0:02:54]} 12. Rae1 {[%clk 0:03:04]}  h6 {[%clk 0:02:51]} 13. Bxf6 {[%clk 0:03:04]}  Qxf6 {[%clk 0:02:52]} 14. Qxf6 {[%clk 0:03:04]}  gxf6 {[%clk 0:02:52]} 15. Nd1 {[%clk 0:03:05]}  Rb8 {[%clk 0:02:45]} 16. b3 {[%clk 0:02:59]}  f5 {[%clk 0:02:42]} 17. Ne3 {[%clk 0:02:59]}  f4 {[%clk 0:02:41]} 18. Nf5 {[%clk 0:03:00]}  Bxf5 {[%clk 0:02:36]} 19. Bxf5 {[%clk 0:03:01]}  Kg7 {[%clk 0:02:32]} 20. Bd7 {[%clk 0:02:53]}  Rb6 {[%clk 0:02:30]} 21. Rd1 {[%clk 0:02:51]}  Be5 {[%clk 0:02:22]} 22. Rfe1 {[%clk 0:02:46]}  Bc3 {[%clk 0:02:16]} 23. Re2 {[%clk 0:02:46]}  f3 {[%clk 0:02:04]} 24. Re3 {[%clk 0:02:45]}  d4 {[%clk 0:02:00]} 25. Rxf3 {[%clk 0:02:45]}  c5 {[%clk 0:02:00]} 26. Rg3+ {[%clk 0:02:35]}  Rg6 {[%clk 0:01:59]} 27. Rh3 {[%clk 0:02:35]}  Rd8 {[%clk 0:01:46]} 28. Bb5 {[%clk 0:02:34]}  Rdd6 {[%clk 0:01:43]} 29. Bd3 {[%clk 0:02:34]}  Rge6 {[%clk 0:01:37]} 30. Rh5 {[%clk 0:02:32]}  Bb4 {[%clk 0:01:31]} 31. g3 {[%clk 0:02:29]}  Re7 {[%clk 0:01:25]} 32. Kg2 {[%clk 0:02:29]}  Rde6 {[%clk 0:01:25]} 33. Rf1 {[%clk 0:02:28]}  Re1 {[%clk 0:01:24]} 34. Rxe1 {[%clk 0:02:28]}  Rxe1 {[%clk 0:01:24]} 35. Rd5 {[%clk 0:02:28]}  Re7 {[%clk 0:01:18]} 36. Rd8 {[%clk 0:02:28]}  Rc7 {[%clk 0:01:12]} 37. f4 {[%clk 0:02:27]}  Re7 {[%clk 0:01:08]} 38. Kf3 {[%clk 0:02:27]}  Re3+ {[%clk 0:01:07]} 39. Kg4 {[%clk 0:02:28]}  Re7 {[%clk 0:00:59]} 40. Kf5 {[%clk 0:02:28]}  Rc7 {[%clk 0:00:54]} 41. Bc4 {[%clk 0:02:23]}  Re7 {[%clk 0:00:52]} 42. Rd5 {[%clk 0:02:20]}  Rc7 {[%clk 0:00:50]} 43. Re5 {[%clk 0:02:09]}  Rd7 {[%clk 0:00:48]} 44. Re8 {[%clk 0:02:08]}  Rc7 {[%clk 0:00:48]} 45. Ke4 {[%clk 0:02:06]}  Rd7 {[%clk 0:00:46]} 46. a4 {[%clk 0:02:02]}  a5 {[%clk 0:00:44]} 47. Ra8 {[%clk 0:02:00]}  Re7+ {[%clk 0:00:44]} 48. Kd5 {[%clk 0:01:59]}  Rd7+ {[%clk 0:00:42]} 49. Kc6 {[%clk 0:01:59]}  Re7 {[%clk 0:00:42]} 50. Kb5 {[%clk 0:02:00]}  Rb7+ {[%clk 0:00:41]} 51. Kc6 {[%clk 0:02:00]}  Re7 {[%clk 0:00:41]} 52. Kb6 {[%clk 0:02:01]}  Rd7 {[%clk 0:00:28]} 53. Bd3 {[%clk 0:01:58]}  Rd6+ {[%clk 0:00:25]} 54. Kb5 {[%clk 0:01:58]}  h5 {[%clk 0:00:23]} 55. Ra7 {[%clk 0:01:57]}  h4 {[%clk 0:00:22]} 56. Bc4 {[%clk 0:01:55]}  Rf6 {[%clk 0:00:22]} 57. Bd5 {[%clk 0:01:40]}  hxg3 {[%clk 0:00:20]} 58. hxg3 {[%clk 0:01:39]}  Be1 {[%clk 0:00:21]} 59. Rxa5 {[%clk 0:01:33]}  Bxg3 {[%clk 0:00:16]} 60. Kc4 {[%clk 0:01:24]}  Bf2 {[%clk 0:00:12]} 61. Kd3 {[%clk 0:01:07]}  Rxf4 {[%clk 0:00:12]} 62. Rxc5 {[%clk 0:01:07]}  Be3 {[%clk 0:00:10]} 63. Rc7 {[%clk 0:01:07]}  Rf2 {[%clk 0:00:06]} 64. a5 {[%clk 0:01:07]}  Rd2+ {[%clk 0:00:03]} 65. Ke4 {[%clk 0:01:07]}  Kf8 {[%clk 0:00:01]} 66. a6 {[%clk 0:01:06]} 1-0


[Site "https://www.chess.com"]

[Event "Titled Tuesday Blitz August 02 Late 2022"]
[White "Rasulov, Vugar"]
[Black "Blanco Ronquillo, Humberto L."]
[WhiteFideId "13402390"]
[BlackFideId "3504239"]
[WhiteElo "2523"]
[BlackElo "2423"]
[Result "1-0"]
[Round "03"]
[TimeControl "180+1"]
[Date "2022.08.02"]
[WhiteClock "0:01:22"]
[BlackClock "0:00:06"]

1. d4 {[%clk 0:03:00]}  d5 {[%clk 0:02:59]} 2. c4 {[%clk 0:03:01]}  e6 {[%clk 0:03:00]} 3. Nf3 {[%clk 0:03:01]}  a6 {[%clk 0:02:59]} 4. g3 {[%clk 0:03:00]}  dxc4 {[%clk 0:02:12]} 5. Bg2 {[%clk 0:03:00]}  Nf6 {[%clk 0:02:10]} 6. O-O {[%clk 0:03:00]}  b5 {[%clk 0:02:01]} 7. Ne5 {[%clk 0:02:57]}  Nd5 {[%clk 0:02:01]} 8. a4 {[%clk 0:02:47]}  Bb7 {[%clk 0:01:33]} 9. b3 {[%clk 0:02:47]}  cxb3 {[%clk 0:01:26]} 10. Qxb3 {[%clk 0:02:48]}  c6 {[%clk 0:01:25]} 11. e4 {[%clk 0:02:37]}  Nb6 {[%clk 0:01:13]} 12. Bb2 {[%clk 0:02:20]}  Bd6 {[%clk 0:01:02]} 13. axb5 {[%clk 0:01:56]}  cxb5 {[%clk 0:01:03]} 14. Nc3 {[%clk 0:01:43]}  O-O {[%clk 0:01:01]} 15. Rfd1 {[%clk 0:01:43]}  Qe7 {[%clk 0:00:57]} 16. Nd3 {[%clk 0:01:35]}  Nc6 {[%clk 0:00:20]} 17. e5 {[%clk 0:01:35]}  Bb8 {[%clk 0:00:08]} 18. Ba3 {[%clk 0:01:34]}  Qd7 {[%clk 0:00:05]} 19. Nc5 {[%clk 0:01:31]}  Qc8 {[%clk 0:00:04]} 20. Nxb7 {[%clk 0:01:31]}  Qxb7 {[%clk 0:00:05]} 21. Bxf8 {[%clk 0:01:30]}  Kxf8 {[%clk 0:00:06]} 22. d5 {[%clk 0:01:29]}  exd5 {[%clk 0:00:06]} 23. Nxd5 {[%clk 0:01:27]}  Nc4 {[%clk 0:00:06]} 24. Nb4 {[%clk 0:01:22]} 1-0


[Site "https://www.chess.com"]

[Event "Titled Tuesday Blitz August 02 Late 2022"]
[White "Saydaliev, Saidakbar"]
[Black "Large, Peter G"]
[WhiteFideId "14203693"]
[BlackFideId "400866"]
[WhiteElo "2265"]
[BlackElo "2064"]
[Result "1-0"]
[Round "03"]
[TimeControl "180+1"]
[Date "2022.08.02"]
[WhiteClock "0:00:49"]
[BlackClock "0:00:11"]

1. e4 {[%clk 0:03:00]}  e5 {[%clk 0:02:59]} 2. Nf3 {[%clk 0:03:00]}  Nc6 {[%clk 0:03:00]} 3. Bc4 {[%clk 0:02:57]}  g6 {[%clk 0:02:59]} 4. d4 {[%clk 0:02:54]}  exd4 {[%clk 0:02:59]} 5. Bg5 {[%clk 0:02:52]}  Be7 {[%clk 0:02:58]} 6. Bxe7 {[%clk 0:02:52]}  Qxe7 {[%clk 0:02:59]} 7. O-O {[%clk 0:02:52]}  Nf6 {[%clk 0:02:40]} 8. Re1 {[%clk 0:02:50]}  Qc5 {[%clk 0:02:25]} 9. e5 {[%clk 0:02:42]}  Ng4 {[%clk 0:02:11]} 10. Bxf7+ {[%clk 0:02:39]}  Kxf7 {[%clk 0:02:11]} 11. Ng5+ {[%clk 0:02:39]}  Kg7 {[%clk 0:02:11]} 12. Qxg4 {[%clk 0:02:37]}  d5 {[%clk 0:02:11]} 13. e6 {[%clk 0:02:31]}  Qxc2 {[%clk 0:02:07]} 14. Na3 {[%clk 0:02:24]}  Qf5 {[%clk 0:02:06]} 15. Qg3 {[%clk 0:02:21]}  Ne7 {[%clk 0:01:13]} 16. Nb5 {[%clk 0:02:12]}  c6 {[%clk 0:01:02]} 17. Nxd4 {[%clk 0:02:00]}  Qf6 {[%clk 0:01:01]} 18. Ndf3 {[%clk 0:01:59]}  Rf8 {[%clk 0:00:59]} 19. h4 {[%clk 0:01:37]}  h6 {[%clk 0:00:58]} 20. Nh3 {[%clk 0:01:37]}  Nf5 {[%clk 0:00:45]} 21. Qc7+ {[%clk 0:01:33]}  Qe7 {[%clk 0:00:45]} 22. Qe5+ {[%clk 0:01:34]}  Qf6 {[%clk 0:00:45]} 23. Qe2 {[%clk 0:01:05]}  Re8 {[%clk 0:00:36]} 24. Nf4 {[%clk 0:01:04]}  Nxh4 {[%clk 0:00:30]} 25. g3 {[%clk 0:00:50]}  Nxf3+ {[%clk 0:00:17]} 26. Qxf3 {[%clk 0:00:51]}  Bxe6 {[%clk 0:00:17]} 27. Qb3 {[%clk 0:00:52]}  Re7 {[%clk 0:00:15]} 28. Nxe6+ {[%clk 0:00:51]}  Rxe6 {[%clk 0:00:14]} 29. Qxb7+ {[%clk 0:00:52]}  Qf7 {[%clk 0:00:13]} 30. Qxa8 {[%clk 0:00:51]}  Rf6 {[%clk 0:00:13]} 31. Qd8 {[%clk 0:00:50]}  Rxf2 {[%clk 0:00:12]} 32. Re7 {[%clk 0:00:49]}  Rf1+ {[%clk 0:00:11]} 33. Rxf1 {[%clk 0:00:49]} 1-0


[Site "https://www.chess.com"]

[Event "Titled Tuesday Blitz August 02 Late 2022"]
[White "Silvestre, Christian"]
[Black "Harshavardhan G B"]
[WhiteFideId "30956269"]
[BlackFideId "25059009"]
[WhiteElo "2276"]
[BlackElo "1831"]
[Result "0-1"]
[Round "03"]
[TimeControl "180+1"]
[Date "2022.08.02"]
[WhiteClock "0:00:10"]
[BlackClock "0:00:22"]

1. Nf3 {[%clk 0:02:58]}  Nf6 {[%clk 0:02:58]} 2. d4 {[%clk 0:02:56]}  g6 {[%clk 0:02:57]} 3. c3 {[%clk 0:02:56]}  Bg7 {[%clk 0:02:57]} 4. Bf4 {[%clk 0:02:57]}  O-O {[%clk 0:02:57]} 5. Nbd2 {[%clk 0:02:57]}  d6 {[%clk 0:02:57]} 6. h3 {[%clk 0:02:57]}  c5 {[%clk 0:02:57]} 7. Bh2 {[%clk 0:02:56]}  Nc6 {[%clk 0:02:56]} 8. e3 {[%clk 0:02:55]}  cxd4 {[%clk 0:02:56]} 9. cxd4 {[%clk 0:02:53]}  Re8 {[%clk 0:02:55]} 10. Bb5 {[%clk 0:02:51]}  a6 {[%clk 0:02:53]} 11. Ba4 {[%clk 0:02:49]}  b5 {[%clk 0:02:49]} 12. Bb3 {[%clk 0:02:48]}  Na5 {[%clk 0:02:48]} 13. Bc2 {[%clk 0:02:47]}  Bb7 {[%clk 0:02:46]} 14. O-O {[%clk 0:02:46]}  Rc8 {[%clk 0:02:45]} 15. Rc1 {[%clk 0:02:44]}  Qb6 {[%clk 0:02:44]} 16. Bd3 {[%clk 0:02:41]}  d5 {[%clk 0:02:38]} 17. Be5 {[%clk 0:02:31]}  Nc4 {[%clk 0:02:31]} 18. b3 {[%clk 0:02:25]}  Nxe5 {[%clk 0:02:20]} 19. Nxe5 {[%clk 0:02:26]}  Qd6 {[%clk 0:02:14]} 20. Rc2 {[%clk 0:02:17]}  Ne4 {[%clk 0:02:12]} 21. Nef3 {[%clk 0:02:07]}  Nc3 {[%clk 0:02:00]} 22. Qa1 {[%clk 0:02:00]}  b4 {[%clk 0:01:57]} 23. Rfc1 {[%clk 0:01:56]}  a5 {[%clk 0:01:53]} 24. Nb1 {[%clk 0:01:53]}  Ne4 {[%clk 0:01:50]} 25. Nbd2 {[%clk 0:01:43]}  f5 {[%clk 0:01:26]} 26. Qb2 {[%clk 0:01:31]}  Ba6 {[%clk 0:01:21]} 27. Bxa6 {[%clk 0:01:24]}  Qxa6 {[%clk 0:01:21]} 28. Nxe4 {[%clk 0:01:23]}  fxe4 {[%clk 0:01:20]} 29. Nd2 {[%clk 0:01:21]}  Bf6 {[%clk 0:01:01]} 30. Rc5 {[%clk 0:01:14]}  Rxc5 {[%clk 0:00:59]} 31. Rxc5 {[%clk 0:01:13]}  Rc8 {[%clk 0:01:00]} 32. Qc2 {[%clk 0:01:11]}  Rd8 {[%clk 0:00:57]} 33. Nf1 {[%clk 0:01:07]}  h5 {[%clk 0:00:53]} 34. Ng3 {[%clk 0:01:05]}  h4 {[%clk 0:00:52]} 35. Ne2 {[%clk 0:01:04]}  g5 {[%clk 0:00:47]} 36. Rc6 {[%clk 0:00:52]}  Qb5 {[%clk 0:00:42]} 37. Rc5 {[%clk 0:00:48]}  Qa6 {[%clk 0:00:41]} 38. Rc6 {[%clk 0:00:48]}  Qd3 {[%clk 0:00:40]} 39. Nc1 {[%clk 0:00:44]}  Qxc2 {[%clk 0:00:40]} 40. Rxc2 {[%clk 0:00:45]}  Ra8 {[%clk 0:00:40]} 41. Rc6 {[%clk 0:00:43]}  Kf7 {[%clk 0:00:39]} 42. Kf1 {[%clk 0:00:39]}  e6 {[%clk 0:00:38]} 43. Ke2 {[%clk 0:00:35]}  a4 {[%clk 0:00:37]} 44. Kd1 {[%clk 0:00:34]}  axb3 {[%clk 0:00:36]} 45. axb3 {[%clk 0:00:34]}  Be7 {[%clk 0:00:35]} 46. Kc2 {[%clk 0:00:30]}  g4 {[%clk 0:00:31]} 47. hxg4 {[%clk 0:00:28]}  Rg8 {[%clk 0:00:30]} 48. Ne2 {[%clk 0:00:20]}  Rxg4 {[%clk 0:00:28]} 49. Nf4 {[%clk 0:00:20]}  Bg5 {[%clk 0:00:25]} 50. Nxe6 {[%clk 0:00:18]}  Rxg2 {[%clk 0:00:21]} 51. Nxg5+ {[%clk 0:00:18]}  Rxg5 {[%clk 0:00:22]} 52. Rh6 {[%clk 0:00:18]}  Rg2 {[%clk 0:00:22]} 53. Rxh4 {[%clk 0:00:18]}  Rxf2+ {[%clk 0:00:22]} 54. Kc1 {[%clk 0:00:17]}  Re2 {[%clk 0:00:21]} 55. Rh3 {[%clk 0:00:16]}  Ke6 {[%clk 0:00:20]} 56. Rg3 {[%clk 0:00:15]}  Kf5 {[%clk 0:00:20]} 57. Kb1 {[%clk 0:00:15]}  Rf2 {[%clk 0:00:20]} 58. Rh3 {[%clk 0:00:12]}  Rf3 {[%clk 0:00:20]} 59. Rh5+ {[%clk 0:00:12]}  Ke6 {[%clk 0:00:20]} 60. Rh6+ {[%clk 0:00:12]}  Rf6 {[%clk 0:00:20]} 61. Rxf6+ {[%clk 0:00:10]}  Kxf6 {[%clk 0:00:20]} 62. Kc2 {[%clk 0:00:11]}  Kg5 {[%clk 0:00:20]} 63. Kd2 {[%clk 0:00:12]}  Kg4 {[%clk 0:00:21]} 64. Ke2 {[%clk 0:00:12]}  Kg3 {[%clk 0:00:21]} 65. Ke1 {[%clk 0:00:10]}  Kf3 {[%clk 0:00:22]} 0-1


[Site "https://www.chess.com"]

[Event "Titled Tuesday Blitz August 02 Late 2022"]
[White "Sjugirov, Sanan"]
[Black "Krastev, Alexander"]
[WhiteFideId "4189302"]
[BlackFideId "12989983"]
[WhiteElo "2609"]
[BlackElo "2609"]
[Result "1-0"]
[Round "03"]
[TimeControl "180+1"]
[Date "2022.08.02"]
[WhiteClock "0:01:59"]
[BlackClock "0:00:17"]

1. e4 {[%clk 0:02:58]}  c5 {[%clk 0:02:59]} 2. Nf3 {[%clk 0:02:58]}  Nc6 {[%clk 0:02:59]} 3. Bb5 {[%clk 0:02:58]}  g6 {[%clk 0:02:59]} 4. Bxc6 {[%clk 0:02:58]}  bxc6 {[%clk 0:03:00]} 5. O-O {[%clk 0:02:57]}  Bg7 {[%clk 0:03:01]} 6. Re1 {[%clk 0:02:58]}  Nf6 {[%clk 0:03:01]} 7. e5 {[%clk 0:02:54]}  Nd5 {[%clk 0:03:01]} 8. c4 {[%clk 0:02:55]}  Nc7 {[%clk 0:03:02]} 9. Nc3 {[%clk 0:02:55]}  Ne6 {[%clk 0:02:59]} 10. d4 {[%clk 0:02:55]}  cxd4 {[%clk 0:02:57]} 11. Nxd4 {[%clk 0:02:56]}  O-O {[%clk 0:02:57]} 12. Nxe6 {[%clk 0:02:55]}  fxe6 {[%clk 0:02:58]} 13. c5 {[%clk 0:02:53]}  Rb8 {[%clk 0:02:22]} 14. Qd4 {[%clk 0:02:47]}  Qa5 {[%clk 0:02:02]} 15. a3 {[%clk 0:02:41]}  Rb3 {[%clk 0:02:02]} 16. Qc4 {[%clk 0:02:34]}  Rb8 {[%clk 0:02:00]} 17. b4 {[%clk 0:02:15]}  Qc7 {[%clk 0:01:49]} 18. f4 {[%clk 0:02:09]}  d6 {[%clk 0:01:27]} 19. exd6 {[%clk 0:02:08]}  exd6 {[%clk 0:01:28]} 20. cxd6 {[%clk 0:02:08]}  Qxd6 {[%clk 0:01:27]} 21. Be3 {[%clk 0:02:09]}  Ba6 {[%clk 0:00:28]} 22. Qxa6 {[%clk 0:02:05]}  Bxc3 {[%clk 0:00:28]} 23. Rad1 {[%clk 0:02:06]}  Qc7 {[%clk 0:00:29]} 24. Rf1 {[%clk 0:01:59]}  e5 {[%clk 0:00:17]} 25. Qc4+ {[%clk 0:01:59]} 1-0


[Site "https://www.chess.com"]

[Event "Titled Tuesday Blitz August 02 Late 2022"]
[White "Steinberg, Nitzan"]
[Black "Gascon Del Nogal, Jose Rafael"]
[WhiteFideId "2801795"]
[BlackFideId "3902463"]
[WhiteElo "2471"]
[BlackElo "2473"]
[Result "0-1"]
[Round "03"]
[TimeControl "180+1"]
[Date "2022.08.02"]
[WhiteClock "0:00:41"]
[BlackClock "0:00:40"]

1. d4 {[%clk 0:03:00]}  d5 {[%clk 0:02:59]} 2. c4 {[%clk 0:03:01]}  e6 {[%clk 0:02:59]} 3. Nf3 {[%clk 0:02:59]}  Nf6 {[%clk 0:02:59]} 4. Nc3 {[%clk 0:02:59]}  Be7 {[%clk 0:02:54]} 5. cxd5 {[%clk 0:02:59]}  exd5 {[%clk 0:02:54]} 6. Bg5 {[%clk 0:02:59]}  c6 {[%clk 0:02:54]} 7. e3 {[%clk 0:02:59]}  Bf5 {[%clk 0:02:53]} 8. Bd3 {[%clk 0:02:58]}  Bxd3 {[%clk 0:02:53]} 9. Qxd3 {[%clk 0:02:59]}  O-O {[%clk 0:02:53]} 10. O-O {[%clk 0:03:00]}  Nbd7 {[%clk 0:02:50]} 11. Rab1 {[%clk 0:03:00]}  a5 {[%clk 0:02:49]} 12. a3 {[%clk 0:03:00]}  Re8 {[%clk 0:02:47]} 13. b4 {[%clk 0:02:51]}  axb4 {[%clk 0:02:48]} 14. axb4 {[%clk 0:02:52]}  b5 {[%clk 0:02:42]} 15. Nd2 {[%clk 0:02:44]}  Nb6 {[%clk 0:02:41]} 16. Ne2 {[%clk 0:02:38]}  Nc4 {[%clk 0:02:41]} 17. Nxc4 {[%clk 0:02:34]}  dxc4 {[%clk 0:02:40]} 18. Qc2 {[%clk 0:02:32]}  Nd5 {[%clk 0:02:40]} 19. Bxe7 {[%clk 0:02:30]}  Qxe7 {[%clk 0:02:41]} 20. Qd2 {[%clk 0:02:27]}  Ra3 {[%clk 0:02:13]} 21. Ng3 {[%clk 0:02:14]}  g6 {[%clk 0:02:09]} 22. e4 {[%clk 0:02:04]}  Rd3 {[%clk 0:02:05]} 23. Qh6 {[%clk 0:01:57]}  Nc3 {[%clk 0:02:00]} 24. Rbe1 {[%clk 0:01:50]}  Rxd4 {[%clk 0:01:55]} 25. f4 {[%clk 0:01:42]}  Qf8 {[%clk 0:01:19]} 26. Qxf8+ {[%clk 0:01:24]}  Kxf8 {[%clk 0:01:19]} 27. e5 {[%clk 0:01:24]}  Nd5 {[%clk 0:01:16]} 28. f5 {[%clk 0:01:25]}  c3 {[%clk 0:01:11]} 29. e6 {[%clk 0:01:24]}  fxe6 {[%clk 0:01:06]} 30. fxg6+ {[%clk 0:01:25]}  Kg7 {[%clk 0:01:05]} 31. gxh7 {[%clk 0:01:24]}  Kxh7 {[%clk 0:01:02]} 32. Ne4 {[%clk 0:01:24]}  c2 {[%clk 0:00:58]} 33. Re2 {[%clk 0:01:05]}  Rf8 {[%clk 0:00:53]} 34. Rc1 {[%clk 0:00:54]}  Rd1+ {[%clk 0:00:51]} 35. Re1 {[%clk 0:00:55]}  Rxe1+ {[%clk 0:00:47]} 36. Rxe1 {[%clk 0:00:55]}  Nxb4 {[%clk 0:00:45]} 37. Rc1 {[%clk 0:00:55]}  Rd8 {[%clk 0:00:44]} 38. Nc3 {[%clk 0:00:46]}  Rd3 {[%clk 0:00:41]} 39. Ne2 {[%clk 0:00:45]}  Rd2 {[%clk 0:00:40]} 40. Kf1 {[%clk 0:00:41]}  Nd3 {[%clk 0:00:40]} 0-1


[Site "https://www.chess.com"]

[Event "Titled Tuesday Blitz August 02 Late 2022"]
[White "Svane, Frederik"]
[Black "Marczuk, Dominik"]
[WhiteFideId "12923044"]
[BlackFideId "1111264"]
[WhiteElo "2459"]
[BlackElo "1901"]
[Result "1-0"]
[Round "03"]
[TimeControl "180+1"]
[Date "2022.08.02"]
[WhiteClock "0:02:05"]
[BlackClock "0:00:04"]

1. c4 {[%clk 0:03:00]}  f5 {[%clk 0:02:57]} 2. Nc3 {[%clk 0:03:00]}  Nf6 {[%clk 0:02:58]} 3. g3 {[%clk 0:03:01]}  g6 {[%clk 0:02:58]} 4. Bg2 {[%clk 0:03:02]}  Bg7 {[%clk 0:02:58]} 5. Nf3 {[%clk 0:03:02]}  O-O {[%clk 0:02:59]} 6. O-O {[%clk 0:03:03]}  d6 {[%clk 0:02:59]} 7. d4 {[%clk 0:03:03]}  Qe8 {[%clk 0:02:46]} 8. d5 {[%clk 0:03:01]}  a5 {[%clk 0:02:45]} 9. b3 {[%clk 0:03:01]}  Na6 {[%clk 0:02:46]} 10. Bb2 {[%clk 0:03:01]}  h6 {[%clk 0:02:42]} 11. Nd4 {[%clk 0:03:01]}  Nc5 {[%clk 0:02:37]} 12. Ncb5 {[%clk 0:02:59]}  Na6 {[%clk 0:02:24]} 13. Re1 {[%clk 0:02:54]}  Ne4 {[%clk 0:02:13]} 14. Qc2 {[%clk 0:02:43]}  c6 {[%clk 0:01:45]} 15. dxc6 {[%clk 0:02:28]}  bxc6 {[%clk 0:01:46]} 16. Na3 {[%clk 0:02:29]}  Nb4 {[%clk 0:01:31]} 17. Qc1 {[%clk 0:02:29]}  c5 {[%clk 0:01:24]} 18. Ndc2 {[%clk 0:02:28]}  Bxb2 {[%clk 0:01:22]} 19. Qxb2 {[%clk 0:02:29]}  Bb7 {[%clk 0:01:22]} 20. Nb5 {[%clk 0:02:29]}  Qf7 {[%clk 0:01:13]} 21. a3 {[%clk 0:02:29]}  Nxc2 {[%clk 0:01:12]} 22. Qxc2 {[%clk 0:02:29]}  Rab8 {[%clk 0:01:02]} 23. e3 {[%clk 0:02:28]}  Bc6 {[%clk 0:00:59]} 24. Nc3 {[%clk 0:02:27]}  Ba8 {[%clk 0:00:50]} 25. Rab1 {[%clk 0:02:21]}  Nxc3 {[%clk 0:00:49]} 26. Qxc3 {[%clk 0:02:22]}  Bxg2 {[%clk 0:00:49]} 27. Kxg2 {[%clk 0:02:23]}  Ra8 {[%clk 0:00:45]} 28. h4 {[%clk 0:02:19]}  Qg7 {[%clk 0:00:43]} 29. Qd2 {[%clk 0:02:18]}  Rfb8 {[%clk 0:00:41]} 30. e4 {[%clk 0:02:16]}  fxe4 {[%clk 0:00:40]} 31. Rxe4 {[%clk 0:02:17]}  a4 {[%clk 0:00:38]} 32. b4 {[%clk 0:02:14]}  cxb4 {[%clk 0:00:38]} 33. Rxb4 {[%clk 0:02:15]}  Rxb4 {[%clk 0:00:31]} 34. Qd5+ {[%clk 0:02:13]}  Kh7 {[%clk 0:00:30]} 35. Qxa8 {[%clk 0:02:13]}  Rb2 {[%clk 0:00:20]} 36. Qxa4 {[%clk 0:02:13]}  g5 {[%clk 0:00:17]} 37. Qd7 {[%clk 0:02:08]}  Rxf2+ {[%clk 0:00:06]} 38. Kxf2 {[%clk 0:02:06]}  Qb2+ {[%clk 0:00:04]} 39. Re2 {[%clk 0:02:06]}  Qf6+ {[%clk 0:00:04]} 40. Kg2 {[%clk 0:02:05]} 1-0


[Site "https://www.chess.com"]